[Event "ROU-chT Women Superliga 2018"]
[Site "Sovata"]
[Date "2018.11.26"]
[Round "2"]
[White "Cristocea, Gabriela"]
[Black "Nastase, Andreea-Cristina"]
[Result "1/2-1/2"]
[ECO "D20"]
[WhiteElo "1843"]
[BlackElo "1900"]
[Annotator "NA"]
[PlyCount "105"]
[EventDate "2018.11.24"]
[EventType "team-tourn"]
[EventCountry "ROU"]
[SourceTitle "playchess.com"]
[Source "ChessBase"]
[SourceQuality "1"]
[TimeControl "40/5400+30:1800+30"]

1. d4 {[%emt 0:00:00]} d5 {[%emt 0:00:00]} 2. c4 {[%emt 0:00:00]} dxc4 {[%emt 0:00:01]} 3. e4 {[%emt 0:00:00]} e6 {[%emt 0:01:58]} 4. Bxc4 {[%emt 0:00:02]} Nf6 {[%emt 0:00:35]} 5. Nc3 {[%emt 0:01:38]} a6 {[%emt 0:00:08]} 6. e5 {[%emt 0:03:15]} Nd5 {[%emt 0:00:43]} 7. Nxd5 {[%emt 0:05:59]} exd5 {[%emt 0:00:04]} 8. Be2 {[%emt 0:00:10]} Bb4+ {[%emt 0:06:14]} 9. Bd2 {[%emt 0:00:10]} Bxd2+ {[%emt 0:00:09]} 10. Qxd2 {[%emt 0:00:06]} Nc6 {[%emt 0:00:11]} 11. Nf3 {[%emt 0:04:27]} Bf5 {[%emt 0:04:32]} 12. Rc1 {[%emt 0:01:33]} Qe7 {[%emt 0:03:59]} 13. O-O {[%emt 0:00:51]} O-O {[%emt 0:01:16]} 14. a3 {[%emt 0:03:43]} h6 {[%emt 0:01:19]} 15. Qc3 {[%emt 0:04:21]} Bg4 {[%emt 0:02:05]} 16. Rfe1 {[%emt 0:00:59]} Rfd8 {[%emt 0:02:08]} 17. b4 $14 {[%emt 0:02:20]} Rac8 {[%emt 0:07:05]} 18. Bxa6 {[%emt 0:06:48]} Nxb4 {[%emt 0:02:10]} 19. Bxb7 {[%emt 0:02:12]} Rb8 {[%emt 0:03:36]} 20. Qxc7 {[%emt 0:00:34]} Rxb7 {[%emt 0:01:27]} 21. Qxe7 {[%emt 0:00:21]} Rxe7 {[%emt 0:00:03]} 22. axb4 {[%emt 0:00:21]} Bxf3 {[%emt 0:00:47]} 23. gxf3 {[%emt 0:00:08]} Rb7 {[%emt 0:00:07]} 24. Rb1 {[%emt 0:03:07]} Rdb8 {[%emt 0:00:05]} 25. Red1 {[%emt 0:03:50]} Rxb4 {[%emt 0:00:05]} 26. Rxb4 {[%emt 0:00:08]} Rxb4 {[%emt 0:00:02]} 27. Kg2 {[%emt 0:06:48]} Kf8 {[%emt 0:01:00]} 28. Rd3 {[%emt 0:01:47]} Ke7 {[%emt 0:00:50]} 29. Kg3 {[%emt 0:06:47]} Ke6 {[%emt 0:00:14]} 30. Rd1 {[%emt 0:01:22]} Kf5 {[%emt 0:00:37]} 31. h4 {[%emt 0:03:08]} g5 {[%emt 0:01:57]} 32. hxg5 {[%emt 0:06:10]} hxg5 {[%emt 0:00:03]} 33. Rd3 {[%emt 0:01:03]} Ra4 {[%emt 0:01:01]} 34. Kg2 {[%emt 0:04:04]} Kf4 {[%emt 0:01:54]} 35. Kf1 {[%emt 0:00:26]} Rb4 {[%emt 0:04:21]} 36. Ke1 {[%emt 0:00:35]} g4 {[%emt 0:02:37]} 37. fxg4 {[%emt 0:00:57]} Kxg4 {[%emt 0:05:29]} 38. Ke2 {[%emt 0:01:14]} Rb2+ {[%emt 0:03:01]} 39. Ke3 {[%emt 0:01:37]} Kf5 {[%emt 0:00:28]} 40. Ra3 {[%emt 0:00:00]} Rb7 {[%emt 0:00:00]} 41. f3 {[%emt 0:04:52]} Rb6 {[%emt 0:04:24]} 42. Ra5 {[%emt 0:05:47]} Rb3+ {[%emt 0:01:27]} 43. Ke2 {[%emt 0:03:03]} Rb2+ {[%emt 0:02:46]} 44. Ke3 {[%emt 0:01:05]} Rb3+ {[%emt 0:00:05]} 45. Kf2 {[%emt 0:02:23]} Kf4 {[%emt 0:00:47]} 46. Rxd5 {[%emt 0:00:06]} Rxf3+ {[%emt 0:02:11]} 47. Kg2 {[%emt 0:05:21]} Ke4 {[%emt 0:00:57]} 48. Rd7 {[%emt 0:00:27]} Rd3 {[%emt 0:02:28]} 49. Rxf7 {[%emt 0:00:27]} Rxd4 {[%emt 0:00:05]} 50. e6 {[%emt 0:00:44]} Rd8 {[%emt 0:00:03]} 51. Kg3 {[%emt 0:04:25]} Re8 {[%emt 0:00:06]} 52. e7 {[%emt 0:00:38]} Ke5 {[%emt 0:00:05]} 53. Kg4 {[%emt 0:01:02]} 1/2-1/2

[Event "ROU-chT Women Superliga 2018"]
[Site "Sovata"]
[Date "2018.11.26"]
[Round "2"]
[White "Rata, Anamaria"]
[Black "Dragomirescu, Angela"]
[Result "0-1"]
[ECO "C41"]
[WhiteElo "1780"]
[BlackElo "2275"]
[Annotator "NA"]
[PlyCount "44"]
[EventDate "2018.11.24"]
[EventType "team-tourn"]
[EventCountry "ROU"]
[SourceTitle "playchess.com"]
[Source "ChessBase"]
[SourceQuality "1"]
[TimeControl "40/5400+30:1800+30"]

1. e4 {[%emt 0:00:00]} d6 {[%emt 0:00:00]} 2. d4 {[%emt 0:00:00]} Nf6 {[%emt 0:00:00]} 3. Nc3 {[%emt 0:00:00]} e5 {[%emt 0:00:00]} 4. Nf3 {[%emt 0:00:34]} Nbd7 {[%emt 0:00:01]} 5. Bc4 {[%emt 0:00:40]} Be7 {[%emt 0:00:04]} 6. O-O {[%emt 0:01:26]} O-O {[%emt 0:00:04]} 7. Re1 {[%emt 0:08:06]} c6 {[%emt 0:01:37]} 8. dxe5 {[%emt 0:09:46] C41: Philidor Defence} (8. a4 a5 9. h3 Re8 10. Ba2 Bf8 11. Be3 Qc7 12. Ng5 Re7 13. f4 b6 14. fxe5 dxe5 15. d5 cxd5 16. exd5 {1-0 (16) Wang,H (2709)-Ivanchuk,V (2726) Huaian 2017}) 8... dxe5 {[%emt 0:00:49]} 9. Bg5 {[%emt 0:11:14]} h6 {[%emt 0:08:29]} 10. Bh4 {[%emt 0:03:57]} Nh5 {[%emt 0:01:45]} 11. Bxe7 {[%emt 0:06:46]} Qxe7 {[%emt 0:00:15]} 12. Ne2 $146 {[%emt 0:01:57]} ({Predecessor:} 12. Qd2 Nb6 13. Bb3 Bg4 14. Qe3 Qf6 15. Nd2 Be6 {½-½ (33) Sieker,R (2014)-Bader,G (2133) Gerlingen 2007}) 12... Nb6 {[%emt 0:18:15]} 13. Bb3 {[%emt 0:05:02]} Bg4 {[%emt 0:01:36]} 14. Ng3 {[%emt 0:05:12]} Rad8 {[%emt 0:06:38]} 15. Qe2 {[%emt 0:01:46]} Nf4 {[%emt 0:08:36]} 16. Qe3 {[%emt 0:01:00]} Qf6 {[%emt 0:01:14]} 17. Nd2 {[%emt 0:06:17]} Rd4 {[%emt 0:04:09]} 18. f3 {[%emt 0:05:14]} Rfd8 {[%emt 0:03:06]} 19. Rad1 {[%emt 0:06:44]} (19. Ndf1 $1 $15 Be6 20. Bxe6 fxe6 21. Qb3) 19... Bc8 {[%emt 0:04:41]} 20. Ne2 {[%emt 0:04:14]} Nxe2+ {[%emt 0:25:39]} 21. Qxe2 {[%emt 0:00:08]} Qd6 {[%emt 0:01:22]} 22. Nc4 {[%emt 0:09:16]} Nxc4 $19 {[%emt 0:00:16]} 0-1

[Event "ROU-chT Women Superliga 2018"]
[Site "Sovata"]
[Date "2018.11.27"]
[Round "3"]
[White "L'Ami, Alina"]
[Black "Popa, Andrada"]
[Result "1-0"]
[ECO "D56"]
[WhiteElo "2285"]
[BlackElo "1598"]
[Annotator "NA"]
[PlyCount "91"]
[EventDate "2018.11.24"]
[EventType "team-tourn"]
[EventCountry "ROU"]
[SourceTitle "playchess.com"]
[Source "ChessBase"]
[SourceQuality "1"]
[TimeControl "40/5400+30:1800+30"]

1. d4 {[%emt 0:00:00]} d5 {[%emt 0:01:38]} 2. c4 {[%emt 0:00:00]} e6 {[%emt 0:00:05]} 3. Nf3 {[%emt 0:00:00]} Nf6 {[%emt 0:00:10]} 4. Nc3 {[%emt 0:00:00]} Be7 {[%emt 0:00:11]} 5. Bg5 {[%emt 0:00:25]} O-O {[%emt 0:01:48]} 6. e3 {[%emt 0:00:03]} h6 {[%emt 0:07:56]} 7. Bh4 {[%emt 0:00:47]} c5 {[%emt 0:00:59]} 8. dxc5 {[%emt 0:07:12] D56: Queen's Gambit Declined: Lasker Defence} (8. cxd5 Nxd5 9. Bxe7 Qxe7 10. Nxd5 exd5 11. dxc5 Qxc5 12. Be2 Nc6 13. O-O Rd8 14. Rc1 Qb4 15. b3 Bf5 {0-1 (61) Sobina,P (2199)-Slastikhin,V (1846) Voronezh 2018}) 8... Qa5 {[%emt 0:12:56]} 9. cxd5 {[%emt 0:02:32]} Nxd5 {[%emt 0:06:01]} 10. Bxe7 {[%emt 0:06:46]} Nxe7 {[%emt 0:00:14]} 11. Qd4 {[%emt 0:05:20]} Nec6 $146 {[%emt 0:11:16]} ({Predecessor:} 11... Nbc6 12. Qc4 e5 13. Qb5 Qc7 14. Be2 Bd7 15. O-O Rad8 {1-0 (37) Engels,L-Brinckmann,A Bad Oeynhausen 1939}) 12. Qc4 {[%emt 0:01:47]} Nd7 {[%emt 0:06:13]} 13. Qb5 {[%emt 0:04:45]} Qb4 {[%emt 0:06:51]} 14. a3 {[%emt 0:05:09]} Qxc5 {[%emt 0:02:58]} 15. Qxc5 {[%emt 0:00:21]} Nxc5 {[%emt 0:00:07]} 16. b4 {[%emt 0:01:39]} Nd7 {[%emt 0:01:08]} 17. Be2 {[%emt 0:02:12]} b6 {[%emt 0:03:35]} 18. Rd1 {[%emt 0:03:29]} Nf6 {[%emt 0:02:01]} 19. Nd2 {[%emt 0:02:51]} Bb7 {[%emt 0:02:10]} 20. Bf3 {[%emt 0:00:22]} Rab8 {[%emt 0:00:47]} 21. Ke2 {[%emt 0:06:02]} Ne5 {[%emt 0:03:31]} 22. Bxb7 {[%emt 0:00:21]} Rxb7 {[%emt 0:00:09]} 23. f4 {[%emt 0:00:23]} Nc6 {[%emt 0:04:37]} 24. Rc1 {[%emt 0:09:54]} Rd8 {[%emt 0:03:55]} 25. Rhd1 {[%emt 0:02:09]} Rbd7 {[%emt 0:06:15]} 26. Nf3 {[%emt 0:00:39]} Rxd1 {[%emt 0:03:18]} 27. Nxd1 {[%emt 0:01:10]} Ne7 {[%emt 0:01:36]} 28. Nf2 {[%emt 0:01:08]} Ned5 {[%emt 0:02:58]} 29. g3 {[%emt 0:00:26]} Kf8 $14 {[%emt 0:05:13]} 30. Ne5 {[%emt 0:04:24]} Ne7 {[%emt 0:02:10]} 31. e4 {[%emt 0:02:16]} Rc8 {[%emt 0:01:34]} 32. Rd1 {[%emt 0:00:02]} Ke8 {[%emt 0:00:34]} 33. Rd3 {[%emt 0:01:38]} Rd8 {[%emt 0:00:53]} 34. Rxd8+ {[%emt 0:00:29]} Kxd8 {[%emt 0:00:06]} 35. Nxf7+ {[%emt 0:00:03]} Kd7 {[%emt 0:00:21]} 36. Ne5+ {[%emt 0:00:09]} Kd6 {[%emt 0:00:18]} 37. Ke3 {[%emt 0:01:12]} h5 {[%emt 0:01:18]} 38. Nfd3 {[%emt 0:02:26]} Neg8 {[%emt 0:00:31]} 39. h3 {[%emt 0:01:28]} Nh6 {[%emt 0:00:17]} 40. b5 {[%emt 0:00:00]} Nd7 {[%emt 0:00:00]} 41. Nxd7 {[%emt 0:06:08]} Kxd7 {[%emt 0:00:35]} 42. Kd4 {[%emt 0:00:06]} Kd6 {[%emt 0:00:25]} 43. Nb2 {[%emt 0:00:22]} Nf7 {[%emt 0:01:31]} 44. Nc4+ {[%emt 0:00:05]} Ke7 {[%emt 0:00:33]} 45. Ne5 {[%emt 0:01:33]} Nd6 {[%emt 0:01:35]} 46. Nc6+ {[%emt 0:00:42]} 1-0

[Event "ROU-chT Women Superliga 2018"]
[Site "Sovata"]
[Date "2018.11.27"]
[Round "3"]
[White "Dragomirescu, Angela"]
[Black "Ciolacu, Alessia-Mihaela"]
[Result "1/2-1/2"]
[ECO "A06"]
[WhiteElo "2275"]
[BlackElo "1972"]
[Annotator "NA RC"]
[PlyCount "113"]
[EventDate "2018.11.24"]
[EventType "team-tourn"]
[EventCountry "ROU"]
[SourceTitle "playchess.com"]
[Source "ChessBase"]
[SourceQuality "1"]
[TimeControl "40/5400+30:1800+30"]

1. Nf3 {[%emt 0:00:00]} d5 {[%emt 0:00:11]} 2. g3 {[%emt 0:00:32]} Nf6 {[%emt 0:01:42]} 3. Bg2 {[%emt 0:00:06]} e6 {[%emt 0:00:34]} 4. O-O {[%emt 0:03:32]} Bd6 {[%emt 0:00:40]} 5. d3 {[%emt 0:02:46]} O-O {[%emt 0:01:47]} 6. Re1 {[%emt 0:04:05] A07: Réti Opening: New York and Capablanca Systems} (6. Nbd2 c6 7. e4 Nbd7 8. Qe2 e5 9. Nh4 Re8 10. Nf5 Bf8 11. h3 g6 12. Ne3 Nb6 13. Rd1 Bg7 {½-½ (62) Laznicka,V (2674)-Plat,V (2483) Prague 2012}) 6... c6 {[%emt 0:07:19]} 7. Nbd2 {[%emt 0:09:18]} Re8 {[%emt 0:02:00]} 8. e4 {[%emt 0:01:17]} e5 {[%emt 0:01:15]} 9. h3 {[%emt 0:13:23]} a5 $146 {[%emt 0:03:20]} ({Predecessor:} 9... h6 10. Nf1 d4 11. g4 Nh7 12. Ng3 c5 {1-0 (36) Martinovic,S (2525)-Vucic,M (1885) Bjelolasica 2009}) 10. Nf1 {[%emt 0:05:58]} Nbd7 {[%emt 0:03:44]} 11. exd5 {[%emt 0:03:53]} cxd5 {[%emt 0:00:19]} 12. c4 {[%emt 0:05:40]} d4 {[%emt 0:17:28]} 13. N1d2 {[%emt 0:10:34]} ({White should try} 13. g4 $15) 13... h6 {[%emt 0:10:14]} 14. Nh4 {[%emt 0:04:10]} Nc5 {[%emt 0:04:40]} 15. Nb3 {[%emt 0:01:00]} Na6 {[%emt 0:01:49]} 16. Bd2 {[%emt 0:10:48]} a4 {[%emt 0:06:19]} 17. Nc1 {[%emt 0:00:03]} Nc5 {[%emt 0:00:35]} 18. Bb4 {[%emt 0:07:19]} Bd7 {[%emt 0:05:00]} 19. Ba3 {[%emt 0:04:18]} Qc7 {[%emt 0:04:35]} 20. Rb1 {[%emt 0:04:05]} Nh7 {[%emt 0:13:45]} 21. Kh2 {[%emt 0:03:15]} Ng5 {[%emt 0:01:43]} 22. Nf3 {[%emt 0:00:22]} Nge6 {[%emt 0:03:08]} 23. Qd2 {[%emt 0:03:31]} f5 {[%emt 0:04:48]} 24. Bxc5 {[%emt 0:00:16]} Nxc5 {[%emt 0:00:16]} 25. b4 {[%emt 0:00:07]} axb3 {[%emt 0:00:28]} 26. axb3 {[%emt 0:00:01]} Bc6 {[%emt 0:02:55]} 27. b4 {[%emt 0:00:54]} Nxd3 {[%emt 0:02:16]} 28. Nxd3 {[%emt 0:01:22]} Bxf3 {[%emt 0:00:15]} 29. Bxf3 {[%emt 0:00:13]} e4 {[%emt 0:00:05]} 30. c5 {[%emt 0:01:32]} Bf8 {[%emt 0:00:22]} 31. Bg2 {[%emt 0:00:20]} exd3 {[%emt 0:00:17]} 32. Qxd3 {[%emt 0:00:27]} Qd7 {[%emt 0:01:11]} 33. Rxe8 {[%emt 0:00:47]} Rxe8 {[%emt 0:00:05]} 34. Rd1 {[%emt 0:00:30]} Rd8 {[%emt 0:00:17]} 35. Qf3 {[%emt 0:00:32]} b6 {[%emt 0:01:35]} 36. c6 {[%emt 0:00:31]} Qe6 {[%emt 0:00:22]} 37. b5 {[%emt 0:00:29]} g6 {[%emt 0:00:24]} 38. Qd3 {[%emt 0:00:31]} Bc5 {[%emt 0:00:21]} 39. Ra1 {[%emt 0:00:18]} Re8 {[%emt 0:00:46]} 40. Ra7 {[%emt 0:00:00]} Re7 {[%emt 0:00:00]} 41. Rxe7 {[%emt 0:24:00]} Qxe7 {[%emt 0:01:11]} 42. h4 {[%emt 0:01:14]} Qe5 {[%emt 0:08:47]} 43. Qf3 {[%emt 0:03:03]} ({White should play} 43. Qb3+ $18 Kf8 44. Qa2) 43... Bd6 {[%emt 0:00:59]} 44. Qd5+ {[%emt 0:02:07]} Kf8 {[%emt 0:06:08]} 45. f4 {[%emt 0:01:59]} Qxd5 {[%emt 0:01:08]} 46. Bxd5 {[%emt 0:00:02]} g5 {[%emt 0:03:38]} 47. fxg5 {[%emt 0:00:26]} ({Not} 47. hxg5 hxg5 48. fxg5 Kg7 $16) 47... hxg5 {[%emt 0:00:09]} 48. h5 {[%emt 0:01:52]} Kg7 $1 {[%emt 0:04:01]} 49. Be6 {[%emt 0:00:20]} Kh6 {[%emt 0:00:56]} (49... Kf6 $5 {[%cal Rf6e6]} 50. Bc4 g4 $11) 50. Bxf5 {[%emt 0:00:05]} Kxh5 {[%emt 0:00:22]} 51. Kh3 {[%emt 0:00:10]} Kh6 {[%emt 0:00:40]} 52. Kg4 {[%emt 0:00:04]} Kg7 {[%emt 0:00:04]} 53. Kxg5 {[%emt 0:01:46]} Bxg3 {[%emt 0:00:10]} 54. Be6 {[%emt 0:00:24]} Kf8 {[%emt 0:01:04]} 55. Kf6 {[%emt 0:00:33]} Ke8 {[%emt 0:00:07]} 56. Bf5 {[%emt 0:00:27]} Kd8 {[%emt 0:00:05]} 57. Ke6 $14 1/2-1/2

[Event "ROU-chT Women Superliga 2018"]
[Site "Sovata"]
[Date "2018.11.27"]
[Round "3"]
[White "Cosman, Andreea-Marioara"]
[Black "Visanescu, Daria-Ioana"]
[Result "1-0"]
[ECO "D25"]
[WhiteElo "2176"]
[BlackElo "2096"]
[Annotator "NA"]
[PlyCount "62"]
[EventDate "2018.11.24"]
[EventType "team-tourn"]
[EventCountry "ROU"]
[SourceTitle "playchess.com"]
[Source "ChessBase"]
[SourceQuality "1"]
[TimeControl "40/5400+30:1800+30"]

1. d4 {[%emt 0:00:00]} d5 {[%emt 0:02:53]} 2. c4 {[%emt 0:00:00]} dxc4 {[%emt 0:00:43]} 3. Nf3 {[%emt 0:00:00]} Nf6 {[%emt 0:00:19]} 4. e3 {[%emt 0:00:00]} Bg4 {[%emt 0:00:49]} 5. Bxc4 {[%emt 0:01:12]} e6 {[%emt 0:00:57]} 6. O-O {[%emt 0:00:05]} Nc6 {[%emt 0:00:23]} 7. Be2 {[%emt 0:04:11]} Bd6 {[%emt 0:00:58]} 8. Nbd2 {[%emt 0:02:18]} O-O {[%emt 0:03:48]} 9. Nc4 {[%emt 0:00:50]} Be7 {[%emt 0:03:28]} 10. b3 {[%emt 0:01:18]} Nd5 {[%emt 0:01:07]} 11. Bb2 {[%emt 0:00:34]} Bf6 {[%emt 0:00:06]} 12. Qd2 {[%emt 0:06:21]} Re8 {[%emt 0:14:50]} 13. Rfd1 {[%emt 0:04:12]} a5 {[%emt 0:07:53]} 14. Rac1 {[%emt 0:09:44]} a4 {[%emt 0:01:33]} 15. Nfe5 {[%emt 0:06:51]} Bxe2 {[%emt 0:02:50]} 16. Nxc6 {[%emt 0:03:10]} bxc6 {[%emt 0:00:04]} 17. Qxe2 {[%emt 0:00:05]} axb3 {[%emt 0:00:23]} 18. axb3 $11 {[%emt 0:02:06]} Qb8 {[%emt 0:00:32]} 19. e4 {[%emt 0:10:50]} Bg5 {[%emt 0:04:04]} 20. Ra1 {[%emt 0:01:55]} Rxa1 {[%emt 0:02:23]} 21. Rxa1 {[%emt 0:01:17]} Nf4 {[%emt 0:05:41]} 22. Qf3 {[%emt 0:00:33]} Ng6 {[%emt 0:03:48]} 23. Qc3 {[%emt 0:04:36]} Bf6 {[%emt 0:02:59]} 24. Qc2 {[%emt 0:07:58]} Rd8 {[%emt 0:05:36]} 25. Na5 {[%emt 0:01:42]} Ne7 {[%emt 0:00:41]} 26. e5 {[%emt 0:00:30]} Bg5 {[%emt 0:00:10]} 27. g3 {[%emt 0:04:43]} Bh6 {[%emt 0:07:27]} 28. Ra4 {[%emt 0:07:09]} Qb6 {[%emt 0:04:03]} 29. Ba3 {[%emt 0:03:10]} Nf5 {[%emt 0:06:31]} 30. Nxc6 {[%emt 0:00:46]} Re8 {[%emt 0:00:55]} 31. Qc4 {[%emt 0:03:44]} g6 {[%emt 0:00:59]} 1-0

[Event "ROU-chT Women Superliga 2018"]
[Site "Sovata"]
[Date "2018.11.27"]
[Round "3"]
[White "Rendi, Eva"]
[Black "Yugina, Maria"]
[Result "0-1"]
[ECO "C01"]
[WhiteElo "2015"]
[BlackElo "2129"]
[Annotator "ChessBase"]
[PlyCount "108"]
[EventDate "2018.11.24"]
[EventType "team-tourn"]
[EventCountry "ROU"]
[SourceTitle "playchess.com"]
[Source "ChessBase"]
[SourceQuality "1"]
[TimeControl "40/5400+30:1800+30"]

1. e4 {[%emt 0:00:00]} e6 {[%emt 0:01:32]} 2. d4 {[%emt 0:01:14]} d5 {[%emt 0:00:27]} 3. exd5 {[%emt 0:01:52]} exd5 {[%emt 0:00:28]} 4. Bd3 {[%emt 0:00:14]} c5 {[%emt 0:02:05]} 5. dxc5 {[%emt 0:10:13]} Bxc5 {[%emt 0:00:50]} 6. Nf3 {[%emt 0:00:30]} Nf6 {[%emt 0:00:39]} 7. Qe2+ {[%emt 0:07:09]} Be7 {[%emt 0:06:45]} 8. O-O {[%emt 0:04:46]} O-O {[%emt 0:00:09]} 9. Bf4 {[%emt 0:10:20]} Nc6 {[%emt 0:01:46]} 10. c3 {[%emt 0:01:33]} Bg4 {[%emt 0:07:57]} 11. h3 {[%emt 0:04:32]} Bh5 {[%emt 0:01:03]} 12. Qe3 {[%emt 0:07:05]} Re8 {[%emt 0:03:31]} 13. Nd4 {[%emt 0:14:35]} Bc5 {[%emt 0:29:01]} 14. Qd2 {[%emt 0:02:52]} Ne4 {[%emt 0:05:07]} 15. Bxe4 {[%emt 0:03:06]} Rxe4 {[%emt 0:01:51]} 16. Nxc6 {[%emt 0:05:15]} bxc6 {[%emt 0:00:40]} 17. b4 {[%emt 0:02:32]} Bb6 {[%emt 0:00:39]} 18. Na3 {[%emt 0:01:36]} Qf6 {[%emt 0:06:09]} 19. Bg5 {[%emt 0:05:06]} Qd6 {[%emt 0:03:24]} 20. Rae1 {[%emt 0:01:53]} Bc7 {[%emt 0:06:13]} 21. f4 {[%emt 0:04:55]} Rxe1 {[%emt 0:01:33]} 22. Qxe1 {[%emt 0:05:00]} f6 {[%emt 0:00:24]} 23. Bh4 {[%emt 0:01:47]} Re8 {[%emt 0:00:19]} 24. Qc1 {[%emt 0:00:42]} Be2 {[%emt 0:03:02]} 25. Re1 {[%emt 0:00:49]} Qxf4 {[%emt 0:02:53]} 26. Qxf4 {[%emt 0:00:04]} Bxf4 {[%emt 0:00:07]} 27. Kf2 {[%emt 0:01:03]} Bh5 {[%emt 0:00:12]} 28. g4 {[%emt 0:01:14]} Rxe1 {[%emt 0:00:54]} 29. Kxe1 {[%emt 0:00:04]} Bg6 {[%emt 0:00:15]} 30. Kd1 {[%emt 0:00:36]} Bd3 {[%emt 0:06:03]} 31. Bf2 {[%emt 0:00:28]} a6 {[%emt 0:00:39]} 32. Nc2 {[%emt 0:00:11]} Bxc2+ {[%emt 0:02:32]} 33. Kxc2 {[%emt 0:00:04]} Bc7 {[%emt 0:00:14]} 34. Kd3 {[%emt 0:00:22]} Kf7 {[%emt 0:00:08]} 35. c4 {[%emt 0:01:13]} Ke6 {[%emt 0:00:19]} 36. a4 {[%emt 0:00:19]} g6 {[%emt 0:01:31]} 37. a5 {[%emt 0:00:59]} f5 {[%emt 0:03:13]} 38. Kd4 {[%emt 0:00:49]} dxc4 {[%emt 0:00:30]} 39. Kxc4 {[%emt 0:00:15]} Bd6 {[%emt 0:00:21]} 40. Be1 {[%emt 0:00:00]} f4 {[%emt 0:00:00]} 41. Kd4 {[%emt 0:01:49]} f3 {[%emt 0:12:51]} 42. Ke3 {[%emt 0:04:03]} Kd5 {[%emt 0:00:26]} 43. Kxf3 {[%emt 0:00:32]} Kc4 {[%emt 0:00:10]} 44. h4 {[%emt 0:04:04]} Bxb4 {[%emt 0:00:22]} 45. Bxb4 {[%emt 0:01:31]} Kxb4 {[%emt 0:00:08]} 46. Kf4 {[%emt 0:00:05]} c5 {[%emt 0:00:59]} 47. Kg5 {[%emt 0:00:25]} c4 {[%emt 0:00:09]} 48. Kh6 {[%emt 0:00:04]} c3 {[%emt 0:00:08]} 49. Kxh7 {[%emt 0:00:05]} c2 {[%emt 0:00:35]} 50. Kxg6 {[%emt 0:00:22]} c1=Q {[%emt 0:00:13]} 51. h5 {[%emt 0:00:34]} Qc6+ {[%emt 0:00:39]} 52. Kg5 {[%emt 0:00:25]} Qd5+ {[%emt 0:00:17]} 53. Kf6 {[%emt 0:00:16]} Qf3+ {[%emt 0:00:35]} 54. Kg5 {[%emt 0:00:06]} Qf7 {[%emt 0:00:21]} 0-1

[Event "ROU-chT Women Superliga 2018"]
[Site "Sovata"]
[Date "2018.11.27"]
[Round "3"]
[White "Bucur, Denisa-Andreea"]
[Black "Ciungan, Diana-Alexandra"]
[Result "1-0"]
[ECO "A43"]
[WhiteElo "2012"]
[BlackElo "1863"]
[Annotator "NA"]
[PlyCount "57"]
[EventDate "2018.11.24"]
[EventType "team-tourn"]
[EventCountry "ROU"]
[SourceTitle "playchess.com"]
[Source "ChessBase"]
[SourceQuality "1"]
[TimeControl "40/5400+30:1800+30"]

1. d4 {[%emt 0:00:00]} Nf6 {[%emt 0:00:00]} 2. Nf3 {[%emt 0:00:00]} c5 {[%emt 0:00:08]} 3. d5 {[%emt 0:00:00]} b5 {[%emt 0:00:05]} 4. Bg5 {[%emt 0:00:07]} Qb6 {[%emt 0:00:05]} 5. e3 {[%emt 0:01:12]} Bb7 {[%emt 0:04:00]} 6. c4 {[%emt 0:00:26]} bxc4 {[%emt 0:00:22]} 7. Nc3 {[%emt 0:00:18]} Qxb2 {[%emt 0:01:15]} 8. Bxf6 {[%emt 0:00:17]} gxf6 {[%emt 0:00:27]} 9. Rc1 {[%emt 0:00:12]} Bg7 {[%emt 0:00:19]} 10. Bxc4 {[%emt 0:24:32]} Ba6 {[%emt 0:00:03]} 11. Nd2 $14 {[%emt 0:07:30]} O-O {[%emt 0:12:12]} 12. O-O {[%emt 0:06:03]} Qb4 {[%emt 0:15:50]} 13. Nce4 {[%emt 0:08:25]} d6 {[%emt 0:05:56]} 14. Ng3 {[%emt 0:03:33]} Qb7 {[%emt 0:25:02]} 15. Nf5 {[%emt 0:16:34]} e6 {[%emt 0:09:27]} 16. dxe6 {[%emt 0:05:46]} Bxc4 {[%emt 0:00:05]} 17. Rb1 {[%emt 0:13:08]} Qc7 {[%emt 0:05:43]} 18. e7 {[%emt 0:02:10]} Be6 {[%emt 0:00:07]} 19. exf8=Q+ {[%emt 0:00:37]} Bxf8 {[%emt 0:03:53]} 20. Qg4+ {[%emt 0:01:45]} Kh8 {[%emt 0:00:05]} 21. Ne4 {[%emt 0:00:37]} Qd8 {[%emt 0:02:02]} 22. Rfd1 {[%emt 0:03:03]} d5 {[%emt 0:06:24]} 23. Nxc5 {[%emt 0:00:30]} Qc8 {[%emt 0:01:34]} 24. Nxe6 {[%emt 0:00:12]} fxe6 {[%emt 0:00:07]} 25. Nd4 {[%emt 0:00:09]} f5 {[%emt 0:00:49]} 26. Qg3 {[%emt 0:00:30]} Nc6 {[%emt 0:01:27]} 27. Rdc1 {[%emt 0:01:35]} Nxd4 {[%emt 0:00:05]} 28. Qe5+ {[%emt 0:01:19]} Bg7 {[%emt 0:00:21]} 29. Rxc8+ {[%emt 0:00:07]} 1-0

[Event "ROU-chT Women Superliga 2018"]
[Site "Sovata"]
[Date "2018.11.27"]
[Round "3"]
[White "Baciu, Anca-Otilia"]
[Black "Sandu, Mihaela"]
[Result "0-1"]
[ECO "B43"]
[WhiteElo "1998"]
[BlackElo "2308"]
[Annotator "NA"]
[PlyCount "72"]
[EventDate "2018.11.24"]
[EventType "team-tourn"]
[EventCountry "ROU"]
[SourceTitle "playchess.com"]
[Source "ChessBase"]
[SourceQuality "1"]
[TimeControl "40/5400+30:1800+30"]

1. e4 {[%emt 0:00:00]} c5 {[%emt 0:03:13]} 2. Nf3 {[%emt 0:00:00]} e6 {[%emt 0:00:10]} 3. d4 {[%emt 0:00:00]} cxd4 {[%emt 0:00:03]} 4. Nxd4 {[%emt 0:00:00]} a6 {[%emt 0:00:06]} 5. Nc3 {[%emt 0:00:05]} b5 {[%emt 0:00:06]} 6. Bd3 {[%emt 0:01:07]} Qb6 {[%emt 0:00:07]} 7. Nb3 {[%emt 0:00:23]} Qc7 {[%emt 0:00:04]} 8. O-O {[%emt 0:00:59]} Bb7 {[%emt 0:00:11]} 9. Qe2 {[%emt 0:00:25]} Nc6 {[%emt 0:04:08] B43: Sicilian: Kan Variation: 5 Nc3} (9... Nf6 10. f4 d6 11. Kh1 Nbd7 12. Bd2 Nc5 13. Nxc5 dxc5 14. e5 Nd5 15. Nxd5 Bxd5 16. c4 bxc4 17. Bxc4 {1-0 (31) Movsesian,S (2702)-Pantsulaia,L (2595) Plovdiv 2012}) 10. Bd2 {[%emt 0:03:59]} Nf6 {[%emt 0:01:20]} 11. f4 {[%emt 0:04:00]} b4 {[%emt 0:01:56]} 12. Na4 {[%emt 0:03:51]} Be7 {[%emt 0:17:16]} 13. Kh1 $146 {[%emt 0:02:20]} ({Predecessor:} 13. e5 Nd5 14. Rae1 g6 15. Kh1 Na5 16. Nd4 {½-½ (46) Nataf,I (2527)-Wahls,M (2580) Germany 2002}) 13... O-O {[%emt 0:08:17]} 14. Rae1 {[%emt 0:07:25]} d5 {[%emt 0:13:38]} 15. e5 {[%emt 0:13:29]} Ne4 {[%emt 0:04:17]} 16. Be3 {[%emt 0:06:07]} Nd8 {[%emt 0:11:50]} 17. Nd4 {[%emt 0:13:00]} g6 {[%emt 0:05:32]} 18. Rf3 {[%emt 0:05:00]} Qa5 {[%emt 0:07:12]} 19. b3 {[%emt 0:01:23]} Qc7 {[%emt 0:00:04]} 20. Rh3 {[%emt 0:02:05]} Nc6 $16 {[%emt 0:02:31]} 21. Qg4 {[%emt 0:10:21]} Nxd4 {[%emt 0:02:31]} 22. Bxd4 {[%emt 0:00:08]} Bc6 {[%emt 0:02:38]} 23. Rh6 {[%emt 0:07:46]} Rfe8 {[%emt 0:06:27]} 24. Qh3 {[%emt 0:08:06]} Bf8 {[%emt 0:00:05]} 25. Rxh7 {[%emt 0:00:09]} Bg7 {[%emt 0:00:04]} 26. Nc5 {[%emt 0:04:28]} Nxc5 {[%emt 0:00:36]} 27. Bxc5 {[%emt 0:00:07]} Bb5 {[%emt 0:00:17]} 28. Bxb4 {[%emt 0:03:24]} Bxd3 {[%emt 0:00:04]} 29. cxd3 {[%emt 0:00:04]} Qb6 {[%emt 0:06:16]} 30. Bd2 {[%emt 0:01:07]} Qf2 {[%emt 0:00:39]} 31. Ba5 {[%emt 0:03:15]} Qxa2 {[%emt 0:01:01]} 32. Bc7 {[%emt 0:00:39]} Rac8 {[%emt 0:00:33]} 33. Bd6 {[%emt 0:00:16]} Qd2 {[%emt 0:00:59]} 34. Rg1 {[%emt 0:00:41]} Rc1 {[%emt 0:00:21]} 35. Qh4 {[%emt 0:00:27]} Qe3 {[%emt 0:00:38]} 36. Rxg7+ {[%emt 0:00:43]} Kxg7 {[%emt 0:00:04]} 0-1